[Event "FIDE WSTC Open 65 2025"]
[Site "Prague"]
[Date "2025.02.19"]
[Round "3.3"]
[White "Kosten, Anthony C."]
[Black "Wahlbom, Magnus"]
[Result "1/2-1/2"]
[Annotator "RC"]
[ECO "A36"]
[WhiteElo "2372"]
[BlackElo "2109"]
[PlyCount "84"]
[EventDate "2025.02.17"]
[EventType "team-tourn"]
[EventCountry "CZE"]
[SourceTitle "playchess.com"]
[Source "ChessBase"]
[SourceQuality "1"]
[TimeControl "40/5400+30:1800+30"]

1. c4 {[%emt 0:00:05]} Nf6 {[%emt 0:00:22]} 2. g3 {[%emt 0:00:16]} g6 {[%emt 0:00:59]} 3. Bg2 {[%emt 0:00:14]} Bg7 {[%emt 0:00:07]} 4. Nc3 {[%emt 0:00:07]} O-O {[%emt 0:00:27]} 5. e4 {[%emt 0:00:28]} d6 {[%emt 0:02:32]} 6. Nge2 {[%emt 0:00:08]} c5 {[%emt 0:00:30]} 7. O-O {[%emt 0:01:00]} Nc6 {[%emt 0:00:37]} 8. d3 {[%emt 0:00:10]} a6 {[%emt 0:01:13]} 9. h3 {[%emt 0:01:30]} Rb8 {[%emt 0:01:42]} 10. a4 {[%emt 0:00:14]} Ne8 {[%emt 0:01:26]} 11. Be3 {[%emt 0:00:58]} Nc7 {[%emt 0:00:23]} 12. d4 {[%emt 0:00:58]} cxd4 {[%emt 0:00:55]} 13. Nxd4 {[%emt 0:00:09]} Ne6 {[%emt 0:07:15]} 14. Nde2 {[%emt 0:00:36]} Bd7 {[%emt 0:00:59]} 15. Rb1 {[%emt 0:06:12]} Na5 {[%emt 0:02:30]} 16. b3 {[%emt 0:04:41]} b5 {[%emt 0:09:28]} 17. cxb5 {[%emt 0:29:41]} axb5 {[%emt 0:00:09]} 18. b4 {[%emt 0:00:30]} Nc4 {[%emt 0:00:30]} 19. a5 {[%emt 0:00:08]} Nxe3 {[%emt 0:01:23]} 20. fxe3 {[%emt 0:00:07]} Nc7 {[%emt 0:06:57]} 21. Nd5 {[%emt 0:05:47]} Nxd5 {[%emt 0:01:57]} 22. exd5 {[%emt 0:00:44]} Bh6 {[%emt 0:01:33]} 23. Qd3 {[%emt 0:03:28]} e5 {[%emt 0:20:54]} 24. e4 {[%emt 0:14:57]} Qc7 25. Rb3 {[%emt 0:04:01]} Rfc8 {[%emt 0:00:00]} 26. Rc3 {[%emt 0:00:00]} Qa7+ 27. Kh2 {[%emt 0:00:00]} Rxc3 28. Nxc3 {[%emt 0:02:22]} Rc8 29. Qf3 {[%emt 0:00:51]} Be8 30. Rb1 {[%emt 0:02:55]} Bd2 31. Rb3 {[%emt 0:03:12]} Qd4 {[%emt 0:15:05]} 32. Na2 {[%emt 0:06:24]} Rc2 {[%emt 0:06:31]} 33. Ra3 {[%emt 0:02:57]} Qa1 34. Qf6 {[%emt 0:00:12]} Rxa2 35. Rxa2 {[%emt 0:00:41]} Qxa2 {[%emt 0:05:50]} 36. Qe7 {[%emt 0:00:00]} Bxb4 {[%emt 0:00:46]} 37. Qxe8+ {[%emt 0:00:03]} Kg7 {[%emt 0:00:04]} 38. Qxb5 {[%emt 0:01:03]} Bxa5 {[%emt 0:02:23]} 39. Qa6 {[%emt 0:01:53]} Qa3 {[%emt 0:01:06]} 40. h4 {[%emt 0:00:08]} h5 {[%emt 0:01:16]} 41. Qf1 {[%emt 0:30:53]} Bb6 {[%emt 0:32:16]} 42. Qf3 {[%emt 0:01:09]} Qxf3 {[%emt 0:02:23]} 1/2-1/2

[Event "FIDE WSTC Open 65 2025"]
[Site "Prague"]
[Date "2025.02.19"]
[Round "3.4"]
[White "Malmdin, Nils-Ake"]
[Black "Large, Peter G"]
[Result "0-1"]
[Annotator "RC"]
[ECO "C46"]
[WhiteElo "2094"]
[BlackElo "2314"]
[PlyCount "100"]
[EventDate "2025.02.17"]
[EventType "team-tourn"]
[EventCountry "CZE"]
[SourceTitle "playchess.com"]
[Source "ChessBase"]
[SourceQuality "1"]
[TimeControl "40/5400+30:1800+30"]

1. e4 {[%emt 0:00:09]} e5 {[%emt 0:00:55]} 2. Nf3 {[%emt 0:00:15]} Nc6 {[%emt 0:00:06]} 3. Nc3 {[%emt 0:00:49]} g6 {[%emt 0:01:01]} 4. d4 {[%emt 0:03:42]} exd4 {[%emt 0:00:08]} 5. Nxd4 {[%emt 0:04:37]} Bg7 {[%emt 0:00:11]} 6. Be3 {[%emt 0:00:45]} Nf6 {[%emt 0:01:36]} 7. Be2 {[%emt 0:02:27]} O-O {[%emt 0:00:26]} 8. O-O {[%emt 0:05:32]} Re8 {[%emt 0:01:48]} 9. Nxc6 {[%emt 0:05:06]} bxc6 {[%emt 0:01:13]} 10. Bf3 {[%emt 0:00:38]} d6 {[%emt 0:26:28]} 11. Rb1 {[%emt 0:08:40]} Nd7 {[%emt 0:05:17]} 12. Be2 {[%emt 0:12:49]} Nf6 {[%emt 0:13:53]} 13. Bf3 {[%emt 0:00:15]} Nd7 {[%emt 0:05:58]} 14. Be2 {[%emt 0:00:21]} Qe7 {[%emt 0:06:14]} 15. Qd2 {[%emt 0:05:05]} Nf6 {[%emt 0:01:36]} 16. Bg5 {[%emt 0:09:27]} Nxe4 {[%emt 0:09:58]} 17. Nxe4 {[%emt 0:00:12]} Qxe4 {[%emt 0:00:06]} 18. Bf3 {[%emt 0:00:14]} Qc4 {[%emt 0:01:44]} 19. b3 {[%emt 0:00:17]} Qa6 {[%emt 0:02:18]} 20. c4 {[%emt 0:00:23]} Bd7 {[%emt 0:01:20]} 21. Rfe1 {[%emt 0:06:07]} Rab8 {[%emt 0:05:32]} 22. Be3 {[%emt 0:10:21]} c5 {[%emt 0:01:47]} 23. Re2 {[%emt 0:01:54]} Bc6 {[%emt 0:00:46]} 24. Bd5 {[%emt 0:00:40]} Qb7 {[%emt 0:01:09]} 25. Bxc6 {[%emt 0:00:52]} Qxc6 {[%emt 0:00:04]} 26. Rbe1 {[%emt 0:00:29]} Re6 {[%emt 0:01:43]} 27. Bh6 {[%emt 0:01:54]} Rxe2 {[%emt 0:01:37]} 28. Rxe2 {[%emt 0:00:14]} Bxh6 {[%emt 0:00:40]} 29. Qxh6 {[%emt 0:00:08]} Re8 {[%emt 0:00:11]} 30. Qd2 {[%emt 0:00:43]} Rxe2 {[%emt 0:01:41]} 31. Qxe2 {[%emt 0:00:09]} a5 {[%emt 0:00:38]} 32. h4 {[%emt 0:03:24]} h5 {[%emt 0:02:38]} 33. g4 {[%emt 0:06:24]} hxg4 {[%emt 0:00:55]} 34. Qxg4 {[%emt 0:00:11]} Qe8 {[%emt 0:00:31]} 35. h5 {[%emt 0:01:30]} Qe1+ {[%emt 0:01:29]} 36. Kg2 {[%emt 0:00:19]} Qe6 {[%emt 0:00:26]} 37. Qh4 {[%emt 0:01:53]} gxh5 {[%emt 0:00:57]} 38. Qd8+ {[%emt 0:00:40]} Kg7 {[%emt 0:00:06]} 39. Qxc7 {[%emt 0:00:14]} Qg6+ {[%emt 0:02:15]} 40. Kf3 {[%emt 0:06:21]} Qg4+ {[%emt 0:00:50]} 41. Ke3 {[%emt 0:30:17]} Qd4+ {[%emt 0:30:17]} 42. Kf3 {[%emt 0:00:25]} Qd3+ {[%emt 0:02:31]} 43. Kg2 {[%emt 0:01:09]} h4 {[%emt 0:00:00]} 44. Qd7 {[%emt 0:00:00]} Qe4+ {[%emt 0:00:00]} 45. Kh2 {[%emt 0:00:00]} Qf3 {[%emt 0:00:00]} 46. Qxd6 {[%emt 0:00:00]} Qxf2+ {[%emt 0:00:00]} 47. Kh3 {[%emt 0:00:00]} Qf3+ {[%emt 0:00:00]} 48. Kxh4 {[%emt 0:00:00]} Qf6+ {[%emt 0:00:00]} 49. Qxf6+ {[%emt 0:00:00]} Kxf6 {[%emt 0:00:00]} 50. Kg3 {[%emt 0:00:00]} Ke5 {[%emt 0:00:00]} 0-1

[Event "FIDE WSTC Open 65 2025"]
[Site "Prague"]
[Date "2025.02.19"]
[Round "3.5"]
[White "Birnboim, Nathan"]
[Black "Haik, Aldo"]
[Result "1/2-1/2"]
[Annotator "RC"]
[ECO "B30"]
[WhiteElo "2313"]
[BlackElo "2377"]
[PlyCount "219"]
[EventDate "2025.02.17"]
[EventType "team-tourn"]
[EventCountry "CZE"]
[SourceTitle "playchess.com"]
[Source "ChessBase"]
[SourceQuality "1"]
[TimeControl "40/5400+30:1800+30"]

1. e4 {[%emt 0:00:06]} c5 {[%emt 0:00:21]} 2. Nf3 {[%emt 0:00:06]} Nc6 {[%emt 0:00:09]} 3. Nc3 {[%emt 0:00:08]} g6 {[%emt 0:00:40]} 4. Bc4 {[%emt 0:01:08]} Bg7 {[%emt 0:00:51]} 5. O-O {[%emt 0:00:17]} d6 {[%emt 0:03:25]} 6. h3 {[%emt 0:14:37]} a6 {[%emt 0:02:18]} 7. d3 {[%emt 0:05:28]} e6 {[%emt 0:07:16]} 8. Be3 {[%emt 0:11:07]} b5 {[%emt 0:07:43]} 9. Bb3 {[%emt 0:00:21]} Nd4 {[%emt 0:00:34]} 10. Bxd4 {[%emt 0:02:24]} cxd4 {[%emt 0:00:15]} 11. Ne2 {[%emt 0:00:24]} Qb6 {[%emt 0:00:38]} 12. a4 {[%emt 0:02:36]} Bb7 {[%emt 0:30:55]} 13. axb5 {[%emt 0:10:58]} axb5 {[%emt 0:00:11]} 14. Rxa8+ {[%emt 0:00:18]} Bxa8 {[%emt 0:00:06]} 15. Qa1 {[%emt 0:01:28]} Bb7 {[%emt 0:00:44]} 16. Qa2 {[%emt 0:00:54]} Ne7 {[%emt 0:00:24]} 17. Ra1 {[%emt 0:02:50]} Nc6 {[%emt 0:09:22]} 18. Bxe6 {[%emt 0:09:22]} fxe6 {[%emt 0:02:09]} 19. Qxe6+ {[%emt 0:00:27]} Ne7 {[%emt 0:00:17]} 20. Ng5 {[%emt 0:23:57]} Rf8 {[%emt 0:03:43]} 21. Nxh7 {[%emt 0:00:27]} Rf7 {[%emt 0:00:12]} 22. Ng5 {[%emt 0:00:10]} Rf6 {[%emt 0:00:46]} 23. Qg4 {[%emt 0:01:55]} Bc8 {[%emt 0:06:49]} 24. Qg3 {[%emt 0:01:34]} Qc5 {[%emt 0:00:55]} 25. c3 {[%emt 0:01:44]} dxc3 {[%emt 0:00:51]} 26. bxc3 {[%emt 0:00:04]} b4 {[%emt 0:03:51]} 27. d4 {[%emt 0:05:26]} Qc4 {[%emt 0:03:30]} 28. Qe3 {[%emt 0:01:38]} b3 {[%emt 0:05:26]} 29. Rb1 {[%emt 0:01:07]} Bd7 {[%emt 0:00:51]} 30. Nc1 {[%emt 0:01:13]} Ba4 {[%emt 0:00:06]} 31. Qd3 {[%emt 0:00:03]} d5 {[%emt 0:01:15]} 32. exd5 {[%emt 0:00:14]} Qxd5 {[%emt 0:04:01]} 33. Ne4 {[%emt 0:00:03]} Rc6 {[%emt 0:00:27]} 34. Nd2 {[%emt 0:01:45]} Qf5 {[%emt 0:03:13]} 35. Ndxb3 {[%emt 0:00:49]} Qxd3 {[%emt 0:01:26]} 36. Nxd3 {[%emt 0:00:02]} Rxc3 {[%emt 0:00:11]} 37. Ndc5 {[%emt 0:00:12]} Bc6 {[%emt 0:00:31]} 38. Ne6 {[%emt 0:00:32]} Bf6 {[%emt 0:00:13]} 39. Nbc5 {[%emt 0:00:18]} Nd5 {[%emt 0:02:29]} 40. Rb8+ {[%emt 0:00:41]} Ke7 {[%emt 0:00:17]} 41. Rc8 {[%emt 0:30:59]} Bd7 {[%emt 0:04:02]} 42. Ra8 {[%emt 0:00:00]} Bxd4 {[%emt 0:05:53]} 43. Nxd4 {[%emt 0:00:00]} Rxc5 {[%emt 0:00:15]} 44. Ra6 {[%emt 0:00:00]} Nf4 {[%emt 0:01:49]} 45. Kh2 {[%emt 0:00:00]} Ne6 {[%emt 0:06:29]} 46. Nxe6 {[%emt 0:00:00]} Bxe6 {[%emt 0:00:08]} 47. Ra3 {[%emt 0:00:00]} Rc2 {[%emt 0:00:19]} 48. Kg3 {[%emt 0:00:00]} Kf6 {[%emt 0:00:44]} 49. h4 {[%emt 0:00:00]} Rb2 {[%emt 0:00:35]} 50. Rf3+ {[%emt 0:00:00]} Bf5 {[%emt 0:00:46]} 51. Ra3 {[%emt 0:00:00]} Rb4 {[%emt 0:00:27]} 52. f3 {[%emt 0:00:00]} Rb2 {[%emt 0:00:27]} 53. Ra1 {[%emt 0:00:00]} Kg7 {[%emt 0:00:59]} 54. Rc1 {[%emt 0:00:00]} Kh6 {[%emt 0:00:14]} 55. Ra1 {[%emt 0:00:00]} Bd3 {[%emt 0:02:17]} 56. Rd1 {[%emt 0:00:00]} Bb5 {[%emt 0:00:59]} 57. Ra1 {[%emt 0:00:00]} Kg7 {[%emt 0:00:13]} 58. Rd1 {[%emt 0:00:00]} Kf6 {[%emt 0:00:14]} 59. Rd6+ {[%emt 0:00:00]} Kf7 {[%emt 0:00:15]} 60. Rd1 {[%emt 0:00:00]} Ke6 {[%emt 0:00:10]} 61. Re1+ {[%emt 0:00:00]} Kf5 {[%emt 0:00:28]} 62. Rc1 {[%emt 0:00:00]} Ke5 {[%emt 0:02:04]} 63. Re1+ {[%emt 0:00:00]} Kd4 {[%emt 0:00:16]} 64. Rd1+ {[%emt 0:00:00]} Bd3 {[%emt 0:00:52]} 65. Re1 {[%emt 0:00:00]} Bf5 {[%emt 0:02:36]} 66. Rd1+ {[%emt 0:00:11]} Ke3 {[%emt 0:00:10]} 67. Re1+ {[%emt 0:00:25]} Kd4 {[%emt 0:00:11]} 68. Rd1+ {[%emt 0:00:07]} Bd3 {[%emt 0:00:21]} 69. Re1 {[%emt 0:00:14]} Ra2 {[%emt 0:00:19]} 70. Rd1 {[%emt 0:00:36]} Re2 {[%emt 0:00:06]} 71. Ra1 {[%emt 0:00:49]} Ke3 {[%emt 0:00:14]} 72. Rc1 {[%emt 0:00:38]} Rb2 {[%emt 0:02:06]} 73. Re1+ {[%emt 0:00:15]} Kd4 {[%emt 0:00:41]} 74. Ra1 {[%emt 0:00:10]} Rd2 {[%emt 0:01:33]} 75. Re1 {[%emt 0:00:27]} Bf5 {[%emt 0:00:59]} 76. Ra1 {[%emt 0:00:10]} Kd3 {[%emt 0:00:07]} 77. Re1 {[%emt 0:00:09]} Ra2 {[%emt 0:00:09]} 78. Rh1 {[%emt 0:01:48]} Ke3 {[%emt 0:00:13]} 79. Re1+ {[%emt 0:00:07]} Kd2 {[%emt 0:00:11]} 80. Rh1 {[%emt 0:02:16]} Bd3 {[%emt 0:00:14]} 81. Rg1 {[%emt 0:00:33]} Ke3 {[%emt 0:00:22]} 82. Re1+ {[%emt 0:00:03]} Be2 {[%emt 0:00:07]} 83. Rb1 {[%emt 0:00:20]} Rc2 {[%emt 0:00:31]} 84. Ra1 {[%emt 0:00:11]} Rd2 {[%emt 0:00:16]} 85. Rc1 {[%emt 0:00:19]} Ra2 {[%emt 0:01:20]} 86. Re1 {[%emt 0:00:25]} Rb2 {[%emt 0:01:40]} 87. Ra1 {[%emt 0:00:06]} Rd2 {[%emt 0:00:13]} 88. Re1 {[%emt 0:00:33]} Rd5 {[%emt 0:00:54]} 89. Ra1 {[%emt 0:01:17]} Rh5 {[%emt 0:00:45]} 90. Ra4 {[%emt 0:01:12]} Bd3 {[%emt 0:00:42]} 91. Ra7 {[%emt 0:00:54]} Re5 {[%emt 0:01:33]} 92. Ra3 {[%emt 0:01:18]} Rb5 {[%emt 0:00:22]} 93. Ra1 {[%emt 0:00:26]} Rc5 {[%emt 0:00:54]} 94. Re1+ {[%emt 0:00:27]} Be2 {[%emt 0:00:16]} 95. Ra1 {[%emt 0:00:28]} Rd5 {[%emt 0:00:27]} 96. Ra3+ {[%emt 0:00:46]} Bd3 {[%emt 0:00:08]} 97. Ra7 {[%emt 0:00:21]} Re5 {[%emt 0:00:51]} 98. Ra1 {[%emt 0:00:40]} Rh5 {[%emt 0:01:17]} 99. Ra7 {[%emt 0:00:32]} g5 {[%emt 0:01:14]} 100. Re7+ {[%emt 0:00:08]} Kd2 {[%emt 0:00:04]} 101. Kg4 {[%emt 0:00:20]} Rxh4+ {[%emt 0:00:29]} 102. Kxg5 {[%emt 0:00:02]} Rh2 {[%emt 0:00:24]} 103. g4 {[%emt 0:00:27]} Be2 {[%emt 0:01:27]} 104. Kf4 {[%emt 0:01:07]} Rf2 {[%emt 0:01:05]} 105. Re3 {[%emt 0:00:24]} Rg2 {[%emt 0:00:36]} 106. Re5 {[%emt 0:01:23]} Rf2 {[%emt 0:00:26]} 107. Re3 {[%emt 0:00:12]} Rg2 {[%emt 0:00:14]} 108. Re5 {[%emt 0:00:07]} Rf2 {[%emt 0:00:17]} 109. Re3 {[%emt 0:00:06]} Rg2 {[%emt 0:00:05]} 110. Ke4 {[%emt 0:01:06]} 1/2-1/2

[Event "FIDE WSTC Open 65 2025"]
[Site "Prague"]
[Date "2025.02.19"]
[Round "3.7"]
[White "Lederman, Leon"]
[Black "Roos, Louis"]
[Result "1/2-1/2"]
[Annotator "RC"]
[ECO "C11"]
[WhiteElo "2198"]
[BlackElo "2312"]
[PlyCount "75"]
[EventDate "2025.02.17"]
[EventType "team-tourn"]
[EventCountry "CZE"]
[SourceTitle "playchess.com"]
[Source "ChessBase"]
[SourceQuality "1"]
[TimeControl "40/5400+30:1800+30"]

1. e4 {[%emt 0:00:04]} e6 {[%emt 0:00:18]} 2. d4 {[%emt 0:00:05]} d5 {[%emt 0:00:07]} 3. Nc3 {[%emt 0:00:03]} Nf6 {[%emt 0:00:38]} 4. e5 {[%emt 0:00:05]} Nfd7 {[%emt 0:00:10]} 5. f4 {[%emt 0:00:07]} c5 {[%emt 0:01:02]} 6. Nf3 {[%emt 0:00:06]} a6 {[%emt 0:01:24]} 7. Be3 {[%emt 0:00:07]} Nc6 {[%emt 0:00:25]} 8. Qd2 {[%emt 0:00:08]} b5 {[%emt 0:00:16]} 9. Nd1 {[%emt 0:01:41]} b4 {[%emt 0:03:51]} 10. Bf2 {[%emt 0:06:15]} Be7 {[%emt 0:04:11]} 11. Bd3 {[%emt 0:05:07]} Nxd4 {[%emt 0:11:46]} 12. Nxd4 {[%emt 0:00:04]} cxd4 {[%emt 0:00:09]} 13. Bxd4 {[%emt 0:00:03]} Nc5 {[%emt 0:02:19]} 14. Qe3 {[%emt 0:02:21]} Qc7 {[%emt 0:01:26]} 15. O-O {[%emt 0:00:37]} Bd7 {[%emt 0:02:45]} 16. Nf2 {[%emt 0:06:35]} a5 {[%emt 0:05:42]} 17. Rfc1 {[%emt 0:04:03]} Rb8 {[%emt 0:11:54]} 18. c3 {[%emt 0:03:18]} b3 {[%emt 0:02:52]} 19. a3 {[%emt 0:00:20]} Nxd3 {[%emt 0:01:33]} 20. Nxd3 {[%emt 0:03:01]} Bb5 {[%emt 0:00:19]} 21. Rf1 {[%emt 0:03:40]} g6 {[%emt 0:00:31]} 22. Rf3 {[%emt 0:00:22]} Bxd3 {[%emt 0:00:38]} 23. Qxd3 {[%emt 0:00:05]} a4 {[%emt 0:05:20]} 24. g4 {[%emt 0:05:14]} h5 {[%emt 0:03:01]} 25. Rh3 {[%emt 0:05:23]} Qc4 {[%emt 0:04:31]} 26. g5 {[%emt 0:09:29]} Rc8 {[%emt 0:03:06]} 27. Qxc4 {[%emt 0:05:06]} Rxc4 {[%emt 0:00:20]} 28. Rd3 {[%emt 0:00:05]} Kd7 {[%emt 0:00:26]} 29. Kf2 {[%emt 0:01:13]} Rhc8 {[%emt 0:12:36]} 30. Ke3 {[%emt 0:02:11]} R8c7 {[%emt 0:07:52]} 31. Rad1 {[%emt 0:02:47]} Rb7 {[%emt 0:02:44]} 32. R3d2 {[%emt 0:01:30]} Kc6 {[%emt 0:01:14]} 33. Rd3 {[%emt 0:14:04]} Rb8 {[%emt 0:01:24]} 34. R3d2 {[%emt 0:00:25]} Kb5 {[%emt 0:00:26]} 35. Kf3 {[%emt 0:04:55]} Rb7 {[%emt 0:01:28]} 36. Ke3 {[%emt 0:01:00]} Rbc7 {[%emt 0:01:14]} 37. Rd3 {[%emt 0:04:04]} Rc8 {[%emt 0:02:48]} 38. Kf3 {[%emt 0:01:38]} 1/2-1/2

[Event "FIDE WSTC Open 65 2025"]
[Site "Prague"]
[Date "2025.02.19"]
[Round "3.8"]
[White "Giffard, Nicolas"]
[Black "Gal, Moshe"]
[Result "1/2-1/2"]
[Annotator "ChessBase"]
[ECO "A57"]
[WhiteElo "2154"]
[BlackElo "2059"]
[PlyCount "97"]
[EventDate "2025.02.17"]
[EventType "team-tourn"]
[EventCountry "CZE"]
[SourceTitle "playchess.com"]
[Source "ChessBase"]
[SourceQuality "1"]
[TimeControl "40/5400+30:1800+30"]

1. d4 {[%emt 0:00:08]} Nf6 {[%emt 0:00:09]} 2. c4 {[%emt 0:00:08]} c5 {[%emt 0:00:16]} 3. d5 {[%emt 0:00:07]} b5 {[%emt 0:00:13]} 4. Nf3 {[%emt 0:00:07]} g6 {[%emt 0:01:21]} 5. g3 {[%emt 0:01:32]} Bg7 {[%emt 0:01:03]} 6. Bg2 {[%emt 0:00:18]} d6 {[%emt 0:05:04]} 7. O-O {[%emt 0:02:36]} b4 {[%emt 0:01:22]} 8. Nbd2 {[%emt 0:01:08]} O-O {[%emt 0:00:16]} 9. e4 {[%emt 0:01:07]} a5 {[%emt 0:01:56]} 10. h3 {[%emt 0:04:28]} Nbd7 {[%emt 0:03:42]} 11. Re1 {[%emt 0:09:16]} Ne8 {[%emt 0:02:04]} 12. Qc2 {[%emt 0:03:24]} a4 {[%emt 0:08:15]} 13. Rb1 {[%emt 0:00:20]} Ra7 {[%emt 0:01:55]} 14. Nf1 {[%emt 0:02:19]} Nb6 {[%emt 0:03:16]} 15. Ne3 {[%emt 0:05:49]} Ba6 {[%emt 0:07:50]} 16. b3 {[%emt 0:00:59]} Bc8 {[%emt 0:02:11]} 17. Bb2 {[%emt 0:01:31]} e5 {[%emt 0:07:15]} 18. dxe6 {[%emt 0:01:10]} fxe6 {[%emt 0:02:22]} 19. Bxg7 {[%emt 0:00:14]} Nxg7 {[%emt 0:00:23]} 20. Re2 {[%emt 0:02:00]} e5 {[%emt 0:01:34]} 21. Rd2 {[%emt 0:02:09]} Ne6 {[%emt 0:04:17]} 22. Nxe5 {[%emt 0:05:07]} Nd4 {[%emt 0:00:26]} 23. Rxd4 {[%emt 0:00:17]} cxd4 {[%emt 0:00:02]} 24. Nc6 {[%emt 0:00:14]} Qd7 {[%emt 0:01:38]} 25. Nxd4 {[%emt 0:00:15]} axb3 {[%emt 0:01:24]} 26. axb3 {[%emt 0:00:09]} Bb7 {[%emt 0:05:20]} 27. Qd2 {[%emt 0:02:08]} Qe7 {[%emt 0:02:12]} 28. Re1 {[%emt 0:02:21]} Rfa8 {[%emt 0:03:50]} 29. Qxb4 {[%emt 0:03:17]} Ra1 {[%emt 0:00:29]} 30. Rxa1 {[%emt 0:01:49]} Rxa1+ {[%emt 0:00:02]} 31. Kh2 {[%emt 0:00:19]} Nc8 {[%emt 0:03:54]} 32. Nd5 {[%emt 0:07:19]} Bxd5 {[%emt 0:02:39]} 33. cxd5 {[%emt 0:00:11]} Ra2 {[%emt 0:09:19]} 34. Qb8 {[%emt 0:03:55]} Qe8 {[%emt 0:01:39]} 35. f3 {[%emt 0:01:00]} Rd2 {[%emt 0:03:50]} 36. Nc6 {[%emt 0:03:40]} Kg7 {[%emt 0:02:51]} 37. Qb4 {[%emt 0:04:23]} Ra2 {[%emt 0:03:10]} 38. f4 {[%emt 0:02:42]} Qf7 {[%emt 0:05:10]} 39. Qd4+ {[%emt 0:14:05]} Qf6 {[%emt 0:02:45]} 40. Qxf6+ {[%emt 0:00:20]} Kxf6 {[%emt 0:00:00]} 41. e5+ {[%emt 0:30:11]} Kf7 {[%emt 0:32:07]} 42. h4 {[%emt 0:01:51]} Rd2 {[%emt 0:00:00]} 43. Kh3 {[%emt 0:00:00]} dxe5 {[%emt 0:00:00]} 44. fxe5 {[%emt 0:00:00]} Ne7 {[%emt 0:00:00]} 45. Nxe7 {[%emt 0:00:00]} Kxe7 {[%emt 0:00:00]} 46. Kh2 {[%emt 0:00:00]} Re2 {[%emt 0:00:00]} 47. e6 {[%emt 0:00:00]} Rb2 {[%emt 0:00:00]} 48. Kh3 {[%emt 0:00:00]} Rxb3 {[%emt 0:00:00]} 49. Kh2 {[%emt 0:00:00]} 1/2-1/2

[Event "FIDE WSTC Open 65 2025"]
[Site "Prague"]
[Date "2025.02.19"]
[Round "3.9"]
[White "Garcia Palermo, Carlos Horacio"]
[Black "Kiss, Attila"]
[Result "1/2-1/2"]
[Annotator "RC"]
[ECO "E11"]
[WhiteElo "2412"]
[BlackElo "2276"]
[PlyCount "53"]
[EventDate "2025.02.17"]
[EventType "team-tourn"]
[EventCountry "CZE"]
[SourceTitle "playchess.com"]
[Source "ChessBase"]
[SourceQuality "1"]
[TimeControl "40/5400+30:1800+30"]

1. d4 {[%emt 0:00:12]} d5 {[%emt 0:00:36]} 2. c4 {[%emt 0:01:12]} e6 {[%emt 0:00:28]} 3. Nf3 {[%emt 0:01:01]} Nf6 {[%emt 0:00:29]} 4. g3 {[%emt 0:01:07]} Bb4+ {[%emt 0:00:47]} 5. Bd2 {[%emt 0:00:19]} Be7 {[%emt 0:00:55]} 6. Bg2 {[%emt 0:00:14]} Nbd7 {[%emt 0:01:59]} 7. O-O {[%emt 0:01:02]} c6 {[%emt 0:01:03]} 8. Qb3 {[%emt 0:02:05]} a5 {[%emt 0:04:36]} 9. Bf4 {[%emt 0:01:28]} O-O {[%emt 0:02:17]} 10. Rc1 {[%emt 0:03:40]} h6 {[%emt 0:06:43]} 11. Nbd2 {[%emt 0:08:17]} Nh5 {[%emt 0:08:55]} 12. e4 {[%emt 0:06:14]} Nxf4 {[%emt 0:02:47]} 13. gxf4 {[%emt 0:00:07]} dxe4 {[%emt 0:01:23]} 14. Nxe4 {[%emt 0:00:08]} Nf6 {[%emt 0:02:39]} 15. Nxf6+ {[%emt 0:05:25]} Bxf6 {[%emt 0:00:09]} 16. c5 {[%emt 0:01:00]} Qc7 {[%emt 0:08:37]} 17. Ne5 {[%emt 0:02:35]} Rd8 {[%emt 0:02:38]} 18. Qe3 {[%emt 0:08:26]} Bd7 {[%emt 0:02:12]} 19. Rc3 {[%emt 0:13:25]} Be8 {[%emt 0:01:06]} 20. Rac1 {[%emt 0:00:32]} a4 {[%emt 0:09:57]} 21. Rc4 {[%emt 0:07:58]} Ra5 {[%emt 0:07:24]} 22. R1c2 {[%emt 0:05:34]} Rda8 {[%emt 0:01:16]} 23. Rb4 {[%emt 0:04:22]} Rb5 {[%emt 0:03:59]} 24. Rcc4 {[%emt 0:04:51]} a3 {[%emt 0:09:13]} 25. b3 {[%emt 0:02:24]} Rba5 {[%emt 0:07:56]} 26. Rb6 {[%emt 0:05:53]} R5a7 {[%emt 0:05:42]} 27. Rc1 {[%emt 0:07:28]} 1/2-1/2

[Event "FIDE WSTC Open 65 2025"]
[Site "Prague"]
[Date "2025.02.19"]
[Round "3.10"]
[White "Nemeth, Zoltan"]
[Black "Ortega, Lexy"]
[Result "1/2-1/2"]
[Annotator "RC"]
[ECO "A34"]
[WhiteElo "2192"]
[BlackElo "2348"]
[PlyCount "87"]
[EventDate "2025.02.17"]
[EventType "team-tourn"]
[EventCountry "CZE"]
[SourceTitle "playchess.com"]
[Source "ChessBase"]
[SourceQuality "1"]
[TimeControl "40/5400+30:1800+30"]

1. Nf3 {[%emt 0:00:03]} c5 {[%emt 0:02:21]} 2. c4 {[%emt 0:00:44]} Nc6 {[%emt 0:00:11]} 3. e3 {[%emt 0:01:13]} e5 {[%emt 0:02:07]} 4. Nc3 {[%emt 0:05:39]} Nf6 {[%emt 0:02:09]} 5. d4 {[%emt 0:01:16]} cxd4 {[%emt 0:06:10]} 6. exd4 {[%emt 0:00:05]} e4 {[%emt 0:00:04]} 7. d5 {[%emt 0:06:48]} exf3 {[%emt 0:08:31]} 8. dxc6 {[%emt 0:00:05]} Qe7+ {[%emt 0:15:02]} 9. Be3 {[%emt 0:00:05]} dxc6 {[%emt 0:00:20]} 10. gxf3 {[%emt 0:13:37]} Bf5 {[%emt 0:00:43]} 11. Qd4 {[%emt 0:01:49]} Qd6 {[%emt 0:07:37]} 12. O-O-O {[%emt 0:03:06]} Qxd4 {[%emt 0:00:09]} 13. Bxd4 {[%emt 0:01:33]} Be7 {[%emt 0:07:23]} 14. Bd3 {[%emt 0:01:32]} Bxd3 {[%emt 0:01:54]} 15. Rxd3 {[%emt 0:18:09]} O-O-O {[%emt 0:04:58]} 16. Rhd1 {[%emt 0:00:59]} b6 {[%emt 0:01:54]} 17. Bxf6 {[%emt 0:17:26]} Bxf6 {[%emt 0:00:26]} 18. Ne4 {[%emt 0:00:04]} Rxd3 {[%emt 0:06:46]} 19. Rxd3 {[%emt 0:00:07]} Be7 {[%emt 0:03:50]} 20. Nd6+ {[%emt 0:00:18]} Kc7 {[%emt 0:03:57]} 21. Nxf7 {[%emt 0:06:17]} Rf8 {[%emt 0:00:14]} 22. Ne5 {[%emt 0:00:05]} Bd6 {[%emt 0:00:12]} 23. Re3 {[%emt 0:00:07]} Rf5 {[%emt 0:00:33]} 24. Nd3 {[%emt 0:00:10]} Rh5 {[%emt 0:02:03]} 25. b4 {[%emt 0:04:47]} Kd7 {[%emt 0:01:35]} 26. Kd1 {[%emt 0:05:03]} Rxh2 {[%emt 0:01:01]} 27. c5 {[%emt 0:00:29]} bxc5 {[%emt 0:00:39]} 28. Nxc5+ {[%emt 0:03:06]} Bxc5 {[%emt 0:08:36]} 29. bxc5 {[%emt 0:00:05]} Rxf2 {[%emt 0:01:43]} 30. Ra3 {[%emt 0:00:04]} Ke6 {[%emt 0:01:33]} 31. Rxa7 {[%emt 0:00:57]} Rxf3 {[%emt 0:04:36]} 32. Rxg7 {[%emt 0:00:22]} Rf7 {[%emt 0:00:24]} 33. Rg2 {[%emt 0:07:23]} Rf5 {[%emt 0:01:28]} 34. Rc2 {[%emt 0:00:48]} h5 {[%emt 0:00:59]} 35. a4 {[%emt 0:00:12]} Kd5 {[%emt 0:04:06]} 36. Kc1 {[%emt 0:01:23]} h4 {[%emt 0:01:30]} 37. a5 {[%emt 0:00:13]} h3 {[%emt 0:00:31]} 38. a6 {[%emt 0:00:14]} Rf7 {[%emt 0:00:38]} 39. Rh2 {[%emt 0:00:21]} Kxc5 {[%emt 0:00:25]} 40. Rxh3 {[%emt 0:00:08]} Kb6 {[%emt 0:00:05]} 41. Ra3 {[%emt 0:30:48]} Ra7 {[%emt 0:30:19]} 42. Kb2 {[%emt 0:00:25]} Rxa6 {[%emt 0:00:13]} 43. Rxa6+ {[%emt 0:00:19]} Kxa6 {[%emt 0:00:02]} 44. Kc3 {[%emt 0:00:12]} 1/2-1/2